fUSD/lending_fUSD_20260116
["ID","MTS","AMOUNT","RATE_DAILY","PERIOD"]
[402134982,1768540255281,-500.0,0.00035616,10]
[402134983,1768540255290,-500.0,0.00035616,10]
[402134984,1768540255301,-500.0,0.00035616,10]
[402134985,1768540255312,-531.47,0.00035616,10]
[402134986,1768540255322,-506.79156747,0.00035616,10]
[402134987,1768540255332,-1675.85,0.00035616,10]
[402134988,1768540255341,-1214.63,0.00035616,10]
[402134989,1768540255352,-733.95,0.00035616,10]
[402134990,1768540255362,-500.0,0.00035616,10]
[402134991,1768540255372,-929.58,0.00035616,10]
[402134992,1768540255383,-793.57,0.00035616,10]
[402134993,1768540255392,-500.0,0.00035616,10]
[402134994,1768540255404,-976.03,0.00035616,10]
[402134995,1768540255415,-500.0,0.00035616,10]
[402134996,1768540255426,-703.43,0.00035616,10]
[402134997,1768540255436,-500.0,0.00035616,10]
[402134998,1768540255446,-1520.42,0.00035616,10]
[402134999,1768540255456,-500.0,0.00035616,10]
[402135000,1768540255467,-649.88,0.00035616,10]
[402135001,1768540255478,-504.20687945,0.00035616,10]
[402135002,1768540255489,-549.71,0.00035616,10]
[402135003,1768540255499,-500.0,0.00035616,10]
[402135004,1768540255510,-723.36,0.00035616,10]
[402135005,1768540255520,-351.33690909,0.00035616,10]
[402135006,1768540255529,-500.0,0.00035616,10]
[402135007,1768540255540,-1533.22,0.00035616,10]
[402135008,1768540255549,-500.0,0.00035616,10]
[402135009,1768540255559,-500.0,0.00035616,10]
[402135010,1768540255569,-500.0,0.00035616,10]
[402135011,1768540255579,-421.33739997,0.00035616,10]
[402135012,1768540255589,-2028.32,0.00035616,10]
[402135013,1768540255599,-1078.95,0.00035616,10]
[402135014,1768540255609,-500.0,0.00035616,10]
[402135015,1768540255619,-1640.3,0.00035616,10]
[402135016,1768540255629,-500.0,0.00035616,10]
[402135017,1768540255638,-500.0,0.00035616,10]
[402135018,1768540255648,-504.89548708,0.00035616,10]
[402135019,1768540255658,-595.45,0.00035616,10]
[402135020,1768540255667,-500.0,0.00035616,10]
[402135021,1768540255677,-500.0,0.00035616,10]
[402135022,1768540255687,-546.67830581,0.00035616,10]
[402135023,1768540255697,-500.0,0.00035616,10]
[402135024,1768540255707,-500.0,0.00035616,10]
[402135025,1768540255717,-3746.19,0.00035616,10]
[402135026,1768540255727,-500.0,0.00035616,10]
[402135027,1768540255737,-500.0,0.00035616,10]
[402135028,1768540255747,-592.73,0.00035616,10]
[402135029,1768540255756,-500.0,0.00035616,10]
[402135030,1768540255766,-503.41122174,0.00035616,10]
[402135031,1768540255776,-326.40638842,0.00035616,10]
[402135032,1768540255786,-500.0,0.00035616,10]
[402135033,1768540255796,-500.0,0.00035616,10]
[402135034,1768540255805,-967.31,0.00035616,10]
[402135035,1768540255815,-500.0,0.00035616,10]
[402135036,1768540255824,-505.36121686,0.00035616,10]
[402135037,1768540255833,-595.32781389,0.00035616,10]
[402135038,1768540255843,-1483.05,0.00035616,10]
[402135039,1768540255852,-1764.54,0.00035616,10]
[402135040,1768540255862,-500.0,0.00035616,10]
[402135041,1768540255872,-500.0,0.00035616,10]
[402135042,1768540255881,-500.0,0.00035616,10]
[402135043,1768540255891,-663.12,0.00035616,10]
[402135044,1768540255900,-833.87,0.00035616,10]
[402135045,1768540255910,-1398.99,0.00035616,10]
[402135046,1768540255919,-500.0,0.00035616,5]
[402135047,1768540255929,-1000.0,0.00035616,10]
[402135048,1768540255938,-642.24,0.00035616,10]
[402135049,1768540255948,-504.63974843,0.00035616,10]
[402135050,1768540255958,-511.37346841,0.00035616,10]
[402135051,1768540255967,-500.0,0.00035616,10]
[402135052,1768540255976,-500.0,0.00035616,10]
[402135053,1768540255986,-502.41,0.00035616,10]
[402135054,1768540255995,-1006.16,0.00035616,10]
[402135055,1768540256004,-500.0,0.00035616,10]
[402135056,1768540256014,-578.7634662,0.00035616,10]
[402135057,1768540256024,-500.0,0.00035616,10]
[402135058,1768540256034,-623.71,0.00035616,10]
[402135059,1768540256044,-506.08580874,0.00035616,10]
[402135060,1768540256053,-521.58,0.00035616,10]
[402135061,1768540256063,-1289.01,0.00035616,10]
[402135062,1768540256072,-642.67,0.00035616,10]
[402135063,1768540256082,-500.0,0.00035616,10]
[402135064,1768540256091,-470.94626667,0.00035616,10]
[402135065,1768540256101,-295.95730883,0.00035616,10]
[402135066,1768540256110,-1178.48,0.00035616,10]
[402135067,1768540256120,-500.0,0.00035616,10]
[402135068,1768540256129,-556.39,0.00035616,10]
[402135069,1768540256140,-500.0,0.00035616,10]
[402135070,1768540256150,-500.0,0.00035616,10]
[402135071,1768540256159,-500.0,0.00035616,10]
[402135072,1768540256168,-500.0,0.00035616,10]
[402135073,1768540256178,-1135.65,0.00035616,10]
[402135074,1768540256187,-1034.71,0.00035616,10]
[402135075,1768540256196,-500.0,0.00035616,10]
[402135076,1768540256205,-500.0,0.00035616,10]
[402135077,1768540256214,-931.61,0.00035616,10]
[402135078,1768540256223,-500.0,0.00035616,10]
[402135079,1768540256233,-503.01436722,0.00035616,10]
[402135080,1768540256242,-500.0,0.00035616,10]
[402135081,1768540256252,-500.0,0.00035616,10]
[402135082,1768540256261,-500.0,0.00035616,10]
[402135083,1768540256270,-1434.1,0.00035616,10]
[402135084,1768540256280,-546.71434111,0.00035616,10]
[402135085,1768540256289,-500.0,0.00035616,10]
[402135086,1768540256299,-500.0,0.00035616,10]
[402135087,1768540256309,-500.0,0.00035616,10]
[402135088,1768540256320,-504.11198711,0.00035616,10]
[402135089,1768540256331,-503.58369032,0.00035616,10]
[402135090,1768540256340,-1334.04,0.00035616,10]
[402135091,1768540256351,-500.0,0.00035616,10]
[402135092,1768540256361,-1411.19,0.00035616,10]
[402135093,1768540256371,-898.08,0.00035616,10]
[402135094,1768540256381,-500.0,0.00035616,10]
[402135095,1768540256391,-505.41790693,0.00035616,10]
[402135096,1768540256401,-510.11302414,0.00035616,10]
[402135097,1768540256410,-500.0,0.00035616,10]
[402135098,1768540256419,-500.0,0.00035616,5]
[402135099,1768540256429,-500.0,0.00035616,10]
[402135100,1768540256439,-535.10629654,0.00035616,10]
[402135101,1768540256449,-500.0,0.00035616,10]
[402135102,1768540256459,-500.0,0.00035616,10]
[402135103,1768540256469,-1734.9,0.00035616,10]
[402135104,1768540256478,-500.0,0.00035616,10]
[402135105,1768540256488,-520.15,0.00035616,10]
[402135106,1768540256498,-150.1,0.00035616,3]
[402135107,1768540256509,-500.0,0.00035616,10]
[402135108,1768540256519,-348.8291905,0.00035616,10]
[402135109,1768540256529,-872.15,0.00035616,10]
[402135110,1768540256539,-1494.04,0.00035616,10]
[402135111,1768540256549,-1837.91,0.00035616,10]
[402135112,1768540256559,-2000.06,0.00035616,10]
[402135113,1768540256570,-1181.58,0.00035616,10]
[402135114,1768540256579,-1999.0,0.00035616,120]
[402135115,1768540256589,-500.0,0.00035616,10]
[402135116,1768540256598,-1011.81,0.00035616,10]
[402135117,1768540256608,-833.91,0.00035616,10]
[402135118,1768540256618,-500.0,0.00035616,10]
[402135119,1768540256628,-683.76,0.00035616,10]
[402135120,1768540256638,-1172.78,0.00035616,10]
[402135121,1768540256648,-3145.54,0.00035616,10]
[402135122,1768540256658,-167.92502145,0.00035616,10]
[402135123,1768540256668,-500.0,0.00035616,10]
[402135124,1768540256678,-500.0,0.00035616,10]
[402135125,1768540256688,-500.0,0.00035616,10]
[402135126,1768540256697,-776.95,0.00035616,10]
[402135127,1768540256707,-500.0,0.00035616,10]
[402135128,1768540256717,-521.66226914,0.00035616,10]
[402135129,1768540256727,-150.1,0.00035616,3]
[402135130,1768540256736,-1171.66,0.00035616,10]
[402135131,1768540256747,-500.0,0.00035616,10]
[402135132,1768540256757,-483.64601176,0.00035616,10]
[402135133,1768540256767,-500.0,0.00035616,10]
[402135134,1768540256776,-500.0,0.00035616,10]
[402135135,1768540256786,-2031.75,0.00035616,10]
[402135136,1768540256796,-989.35,0.00035616,10]
[402135137,1768540256805,-500.0,0.00035616,10]
[402135138,1768540256815,-500.0,0.00035616,10]
[402135139,1768540256825,-500.0,0.00035616,10]
[402135140,1768540256834,-543.44,0.00035616,10]
[402135141,1768540256844,-2495.31,0.00035616,10]
[402135142,1768540256853,-500.0,0.00035616,10]
[402135143,1768540256862,-704.36,0.00035616,10]
[402135144,1768540256872,-1324.49,0.00035616,10]
[402135145,1768540256882,-518.92,0.00035616,10]
[402135146,1768540256891,-502.20739747,0.00035616,10]
[402135147,1768540256901,-992.19,0.00035616,10]
[402135148,1768540256910,-500.0,0.00035616,10]
[402135149,1768540256919,-545.79,0.00035616,10]
[402135150,1768540256929,-152.89489178,0.00035616,3]
[402135151,1768540256938,-500.0,0.00035616,10]
[402135152,1768540256947,-729.24,0.00035616,10]
[402135153,1768540256957,-2330.33,0.00035616,10]
[402135154,1768540256966,-545.21641715,0.00035616,10]
[402135155,1768540256976,-692.17,0.00035616,10]
[402135156,1768540256986,-580.31,0.00035616,10]
[402135157,1768540256996,-692.17,0.00035616,10]
[402135158,1768540257006,-692.17,0.00035616,10]
[402135159,1768540257015,-692.17,0.00035616,10]
[402135160,1768540257025,-692.17,0.00035616,10]
[402135161,1768540257037,-500.0,0.00035616,10]
[402135162,1768540257047,-692.17,0.00035616,10]
[402135163,1768540257057,-661.69,0.00035616,10]
[402135164,1768540257067,-692.17,0.00035616,10]
[402135165,1768540257078,-692.17,0.00035616,10]
[402135166,1768540257088,-692.17,0.00035616,10]
[402135167,1768540257098,-724.46,0.00035616,10]
[402135168,1768540257108,-692.17,0.00035616,10]
[402135169,1768540257118,-1395.31,0.00035616,10]
[402135170,1768540257128,-500.0,0.00035616,10]
[402135171,1768540257139,-692.17,0.00035616,10]
[402135172,1768540257149,-3510.47,0.00035616,10]
[402135173,1768540257160,-761.36,0.00035616,10]
[402135174,1768540257169,-507.12136837,0.00035616,10]
[402135175,1768540257179,-500.0,0.00035616,10]
[402135176,1768540257189,-500.0,0.00035616,10]
[402135177,1768540257202,-500.0,0.00035616,10]
[402135178,1768540257212,-500.0,0.00035616,10]
[402135179,1768540257222,-942.83,0.00035616,10]
[402135180,1768540257231,-1022.73,0.00035616,10]
[402135181,1768540257241,-1260.28,0.00035616,10]
[402135182,1768540257251,-542.5281221,0.00035616,10]
[402135183,1768540257261,-689.58,0.00035616,10]
[402135184,1768540257271,-500.0,0.00035616,10]
[402135185,1768540257281,-504.02485174,0.00035616,10]
[402135186,1768540257291,-500.0,0.00035616,10]
[402135187,1768540257301,-753.71,0.00035616,10]
[402135188,1768540257311,-464.04925051,0.00035616,10]
[402135189,1768540257320,-501.45347865,0.00035616,10]
[402135190,1768540257331,-500.0,0.00035616,10]
[402135191,1768540257341,-953.63,0.00035616,10]
[402135192,1768540257647,-564.83,0.00035616,10]
[402135193,1768540257657,-502.71695014,0.00035616,10]
[402135194,1768540257667,-500.0,0.00035616,10]
[402135195,1768540257677,-500.0,0.00035616,10]
[402135196,1768540257686,-500.0,0.00035616,10]
[402135197,1768540257695,-986.77,0.00035616,10]
[402135198,1768540257704,-500.0,0.00035616,10]
[402135199,1768540257714,-704.43,0.00035616,10]
[402135200,1768540257723,-500.0,0.00035616,10]
[402135201,1768540257732,-582.81,0.00035616,10]
[402135202,1768540257741,-571.17,0.00035616,10]
[402135203,1768540257750,-1182.98,0.00035616,10]
[402135204,1768540257759,-536.43,0.00035616,10]
[402135205,1768540257769,-203.68223634,0.00035616,10]
[402135206,1768540257778,-747.98,0.00035616,10]
[402135207,1768540257788,-502.86,0.00035616,10]
[402135208,1768540257797,-8021.68,0.00035616,10]
[402135209,1768540257806,-500.0,0.00035616,10]
[402135210,1768540257815,-1110.24,0.00035616,10]
[402135211,1768540257826,-500.0,0.00035616,10]
[402135212,1768540257835,-530.27569193,0.00035616,10]
[402135213,1768540257846,-694.36,0.00035616,10]
[402135214,1768540257856,-500.0,0.00035616,10]
[402135215,1768540257865,-500.0,0.00035616,10]
[402135216,1768540257874,-500.0,0.00035616,10]
[402135217,1768540257883,-550.09,0.00035616,10]
[402135218,1768540257893,-711.15,0.00035616,10]
[402135219,1768540257904,-503.31721217,0.00035616,10]
[402135220,1768540257915,-4388.11,0.00035616,10]
[402135221,1768540257925,-601.65,0.00035616,10]
[402135222,1768540257934,-505.00303937,0.00035616,10]
[402135223,1768540257944,-500.0,0.00035616,10]
[402135224,1768540257953,-535.22735484,0.00035616,10]
[402135225,1768540257963,-500.0,0.00035616,10]
[402135226,1768540257973,-637.52,0.00035616,10]
[402135227,1768540257982,-500.0,0.00035616,10]
[402135228,1768540257992,-500.0,0.00035616,10]
[402135229,1768540258008,-504.5508947,0.00035616,10]
[402135230,1768540258027,-932.92,0.00035616,10]
[402135231,1768540258038,-716.41,0.00035616,10]
[402135232,1768540258048,-543.88055518,0.00035616,10]
[402135233,1768540258057,-556.22488392,0.00035616,10]
[402135234,1768540258067,-1453.38,0.00035616,10]
[402135235,1768540258078,-500.0,0.00035616,10]
[402135236,1768540258087,-500.0,0.00035616,10]
[402135237,1768540258097,-1090.31,0.00035616,5]
[402135238,1768540258106,-525.9,0.00035616,10]
[402135239,1768540258115,-500.0,0.00035616,10]
[402135240,1768540258125,-859.25,0.00035616,10]
[402135241,1768540258135,-560.68,0.00035616,10]
[402135242,1768540258147,-500.0,0.00035616,10]
[402135243,1768540258157,-1601.65,0.00035616,10]
[402135244,1768540258166,-150.0,0.00035616,2]
[402135245,1768540258175,-600.0,0.00035616,30]
[402135246,1768540258185,-500.0,0.00035616,5]
[402135247,1768540258194,-272.1,0.00035616,120]
[402135248,1768540258204,-396.59067447,0.00035616,7]
[402135249,1768540258214,-611.8369875,0.00035616,2]
[402135250,1768540258223,-600.0,0.00035657,30]
[402135251,1768540258232,-800.39462936,0.00035657,2]
[402135252,1768540258242,-157.11,0.00035668,2]
[402135253,1768540258251,-500.0,0.00035693,30]
[402135254,1768540258261,-600.0,0.00035748,30]
[402135255,1768540258270,-407.67176714,0.00035753,120]
[402135256,1768540258280,-500.0,0.00035753,120]
[402135257,1768540258290,-500.0,0.00035753,120]
[402135258,1768540258299,-500.0,0.00035753,120]
[402135259,1768540258308,-500.0,0.00035753,120]
[402135260,1768540258318,-500.0,0.00035753,120]
[402135261,1768540258328,-500.0,0.00035753,120]
[402135262,1768540258338,-500.0,0.00035753,120]
[402135263,1768540258347,-500.0,0.00035753,120]
[402135264,1768540258357,-600.0,0.00035778,30]
[402135265,1768540258367,-532.39,0.0003578,120]
[402135266,1768540258377,-557.53,0.0003578,120]
[402135267,1768540258387,-210.2948467,0.0003579,2]
[402135268,1768540258397,-749.83229875,0.00035799,30]
[402135269,1768540258406,-172.75979458,0.00035816,30]
[402135270,1768540258415,-500.0,0.00035889,120]
[402135271,1768540258425,-500.0,0.00035889,120]
[402135272,1768540258434,-692.17,0.00035889,10]
[402135273,1768540258443,-692.17,0.00035889,10]
[402135274,1768540258452,-692.17,0.00035889,10]
[402135275,1768540258462,-151.0,0.0003589,10]
[402135276,1768540258471,-500.0,0.0003589,10]
[402135277,1768540258480,-500.0,0.0003589,10]
[402135278,1768540258490,-500.0,0.0003589,10]
[402135279,1768540258499,-500.0,0.0003589,10]
[402135280,1768540258509,-567.28,0.0003589,10]
[402135281,1768540258519,-500.0,0.0003589,10]
[402135282,1768540258528,-500.0,0.0003589,10]
[402135283,1768540258538,-500.0,0.0003589,10]
[402135284,1768540258547,-503.17618553,0.0003589,10]
[402135285,1768540258557,-474.32466381,0.0003589,7]
[402135286,1768540258566,-500.0,0.0003589,10]
[402135287,1768540258576,-503.25725551,0.0003589,10]
[402135288,1768540258586,-509.16,0.0003589,10]
[402135289,1768540258595,-555.13,0.0003589,10]
[402135290,1768540258605,-500.0,0.0003589,10]
[402135291,1768540258614,-500.0,0.0003589,10]
[402135292,1768540258624,-696.2,0.0003589,10]
[402135293,1768540258633,-500.0,0.0003589,10]
[402135294,1768540258643,-500.0,0.0003589,10]
[402135295,1768540258652,-501.25259381,0.0003589,10]
[402135296,1768540258662,-500.0,0.0003589,10]
[402135297,1768540258672,-604.53,0.0003589,10]
[402135298,1768540258681,-500.0,0.0003589,10]
[402135299,1768540258691,-500.0,0.0003589,10]
[402135300,1768540258701,-200.19428238,0.0003589,10]
[402135301,1768540258710,-589.27,0.0003589,10]
[402135302,1768540258719,-344.52255617,0.0003589,10]
[402135303,1768540258729,-500.0,0.0003589,10]
[402135304,1768540258739,-500.0,0.0003589,10]
[402135305,1768540258748,-537.48178708,0.0003589,10]
[402135306,1768540258758,-500.0,0.0003589,10]
[402135307,1768540258768,-1428.02,0.0003589,10]
[402135308,1768540258778,-324.15714884,0.0003589,10]
[402135309,1768540258787,-500.0,0.0003589,10]
[402135310,1768540258799,-500.0,0.0003589,10]
[402135311,1768540258809,-500.0,0.0003589,10]
[402135312,1768540258820,-593.31,0.0003589,10]
[402135313,1768540258830,-788.58,0.0003589,10]
[402135314,1768540258839,-500.0,0.0003589,10]
[402135315,1768540258851,-500.0,0.0003589,10]
[402135316,1768540258861,-500.0,0.0003589,10]
[402135317,1768540258871,-500.0,0.0003589,10]
[402135318,1768540258880,-506.87428023,0.0003589,10]
[402135319,1768540258889,-1149.82,0.0003589,10]
[402135320,1768540258898,-500.0,0.0003589,10]
[402135321,1768540258908,-500.0,0.0003589,10]
[402135322,1768540258917,-500.0,0.0003589,10]
[402135323,1768540258926,-500.0,0.0003589,10]
[402135324,1768540258935,-500.0,0.0003589,10]
[402135325,1768540258944,-504.35412319,0.0003589,10]
[402135326,1768540258953,-500.0,0.0003589,10]
[402135327,1768540258962,-700.17,0.0003589,10]
[402135328,1768540258971,-500.0,0.0003589,10]
[402135329,1768540258980,-500.0,0.0003589,10]
[402135330,1768540258989,-500.0,0.0003589,10]
[402135331,1768540258997,-562.45819903,0.0003589,10]
[402135332,1768540259006,-505.15675114,0.0003589,10]
[402135333,1768540259015,-1082.88,0.0003589,10]
[402135334,1768540259024,-500.0,0.0003589,10]
[402135335,1768540259034,-504.4751123,0.0003589,10]
[402135336,1768540259043,-1091.37,0.0003589,10]
[402135337,1768540259052,-500.0,0.0003589,10]
[402135338,1768540259061,-656.01,0.0003589,10]
[402135339,1768540259070,-500.0,0.0003589,10]
[402135340,1768540259084,-500.0,0.0003589,10]
[402135341,1768540259093,-527.9033647,0.0003589,10]
[402135342,1768540259102,-500.0,0.0003589,10]
[402135343,1768540259111,-500.0,0.0003589,2]
[402135344,1768540259120,-500.0,0.0003589,10]
[402135345,1768540259129,-500.0,0.0003589,10]
[402135346,1768540259140,-504.93650957,0.0003589,10]
[402135347,1768540259151,-507.61127337,0.0003589,10]
[402135348,1768540259161,-504.29656829,0.0003589,10]
[402135349,1768540259170,-500.0,0.0003589,10]
[402135350,1768540259179,-500.0,0.0003589,10]
[402135351,1768540259189,-151.0,0.0003589,31]
[402135352,1768540259198,-684.28,0.0003589,10]
[402135353,1768540259207,-583.05,0.0003589,10]
[402135354,1768540259217,-500.0,0.0003589,10]
[402135355,1768540259226,-501.60506344,0.0003589,10]
[402135356,1768540259235,-500.0,0.0003589,10]
[402135357,1768540259246,-500.0,0.0003589,10]
[402135358,1768540259255,-503.31171979,0.0003589,10]
[402135359,1768540259265,-500.0,0.0003589,10]
[402135360,1768540259274,-500.0,0.0003589,10]
[402135361,1768540259283,-751.2,0.0003589,10]
[402135362,1768540259292,-541.84247973,0.0003589,10]
[402135363,1768540259301,-500.0,0.0003589,10]
[402135364,1768540259311,-662.29,0.0003589,10]
[402135365,1768540259322,-688.57,0.0003589,10]
[402135366,1768540259339,-647.49,0.0003589,10]
[402135367,1768540259354,-1117.06,0.0003589,10]
[402135368,1768540259364,-505.98469534,0.0003589,10]
[402135369,1768540259374,-584.07,0.0003589,10]
[402135370,1768540259383,-513.8631676,0.0003589,10]
[402135371,1768540259392,-636.52,0.0003589,10]
[402135372,1768540259402,-500.0,0.0003589,10]
[402135373,1768540259412,-500.0,0.0003589,10]
[402135374,1768540259421,-500.0,0.0003589,10]
[402135375,1768540259431,-641.82,0.0003589,10]
[402135376,1768540259440,-544.89,0.0003589,10]
[402135377,1768540259449,-500.0,0.0003589,10]
[402135378,1768540259459,-500.0,0.0003589,10]
[402135379,1768540259468,-509.93072879,0.0003589,10]
[402135380,1768540259477,-634.27745934,0.0003589,10]
[402135381,1768540259486,-621.0,0.0003589,10]
[402135382,1768540259496,-500.0,0.0003589,10]
[402135383,1768540259505,-500.0,0.0003589,10]
[402135384,1768540259515,-739.04,0.0003589,10]
[402135385,1768540259524,-903.48,0.0003589,10]
[402135386,1768540259533,-960.54,0.0003589,10]
[402135387,1768540259543,-635.68623596,0.0003589,10]
[402135388,1768540259552,-500.0,0.0003589,10]
[402135389,1768540259562,-500.0,0.0003589,10]
[402135390,1768540259571,-500.0,0.0003589,10]
[402135391,1768540259580,-500.0,0.0003589,10]
[402135392,1768540259589,-503.86186339,0.0003589,10]
[402135393,1768540259598,-500.0,0.0003589,10]
[402135394,1768540259608,-500.0,0.0003589,10]
[402135395,1768540259617,-500.0,0.0003589,10]
[402135396,1768540259626,-879.68,0.0003589,10]
[402135397,1768540259635,-500.0,0.0003589,10]
[402135398,1768540259645,-500.0,0.0003589,10]
[402135399,1768540259655,-507.50833589,0.0003589,10]
[402135400,1768540259664,-697.23,0.0003589,10]
[402135401,1768540259673,-500.0,0.0003589,10]
[402135402,1768540259683,-500.0,0.0003589,10]
[402135403,1768540259693,-806.51,0.0003589,10]
[402135404,1768540259702,-500.0,0.0003589,10]
[402135405,1768540259711,-500.0,0.0003589,10]
[402135406,1768540259721,-500.0,0.0003589,10]
[402135407,1768540259730,-518.04212425,0.0003589,10]
[402135408,1768540259740,-500.0,0.0003589,10]
[402135409,1768540259750,-500.0,0.0003589,10]
[402135410,1768540259759,-530.23092791,0.0003589,10]
[402135411,1768540259769,-533.12806556,0.0003589,10]
[402135412,1768540259778,-500.0,0.0003589,10]
[402135413,1768540259787,-564.60575279,0.0003589,10]
[402135414,1768540259797,-500.0,0.0003589,10]
[402135415,1768540259807,-982.01,0.0003589,10]
[402135416,1768540259816,-674.55,0.0003589,10]
[402135417,1768540259826,-500.0,0.0003589,10]
[402135418,1768540259835,-799.64,0.0003589,10]
[402135419,1768540259845,-500.0,0.0003589,10]
[402135420,1768540259855,-790.56,0.0003589,10]
[402135421,1768540259864,-1381.82,0.0003589,10]
[402135422,1768540259874,-695.62,0.0003589,10]
[402135423,1768540259883,-500.0,0.0003589,10]
[402135424,1768540259892,-500.0,0.0003589,10]
[402135425,1768540259901,-1139.72,0.0003589,10]
[402135426,1768540259984,-502.1242434,0.0003589,10]
[402135427,1768540259993,-500.0,0.0003589,10]
[402135428,1768540260003,-500.0,0.0003589,10]
[402135429,1768540260012,-500.0,0.0003589,10]
[402135430,1768540260021,-500.0,0.0003589,10]
[402135431,1768540260031,-500.0,0.0003589,10]
[402135432,1768540260040,-504.46147951,0.0003589,10]
[402135433,1768540260049,-500.0,0.0003589,10]
[402135434,1768540260059,-500.0,0.0003589,10]
[402135435,1768540260068,-507.69910647,0.0003589,10]
[402135436,1768540260093,-500.0,0.0003589,10]
[402135437,1768540260102,-500.0,0.0003589,10]
[402135438,1768540260112,-500.0,0.0003589,10]
[402135439,1768540260121,-573.77252235,0.0003589,10]
[402135440,1768540260131,-878.21,0.0003589,10]
[402135441,1768540260141,-500.0,0.0003589,10]
[402135442,1768540260151,-500.0,0.0003589,10]
[402135443,1768540260160,-500.0,0.0003589,10]
[402135444,1768540260170,-500.0,0.0003589,10]
[402135445,1768540260180,-500.0,0.0003589,10]
[402135446,1768540260190,-560.71215991,0.0003589,10]
[402135447,1768540260199,-466.11855507,0.0003589,10]
[402135448,1768540260208,-500.0,0.0003589,10]
[402135449,1768540260218,-500.0,0.0003589,10]
[402135450,1768540260227,-839.83,0.0003589,10]
[402135451,1768540260236,-727.23,0.0003589,10]
[402135452,1768540260246,-500.0,0.0003589,10]
[402135453,1768540260255,-510.10677801,0.0003589,10]
[402135454,1768540260265,-500.0,0.0003589,10]
[402135455,1768540260275,-500.0,0.0003589,10]
[402135456,1768540260284,-500.0,0.0003589,10]
[402135457,1768540260293,-504.9662868,0.0003589,10]
[402135458,1768540260302,-500.0,0.0003589,10]
[402135459,1768540260312,-500.0,0.0003589,10]
[402135460,1768540260321,-570.64,0.0003589,10]
[402135461,1768540260330,-504.83962164,0.0003589,10]
[402135462,1768540260339,-500.0,0.0003589,10]
[402135463,1768540260348,-500.0,0.0003589,10]
[402135464,1768540260357,-500.0,0.0003589,10]
[402135465,1768540260366,-500.0,0.0003589,10]
[402135466,1768540260375,-539.7551802,0.0003589,10]
[402135467,1768540260384,-500.0,0.0003589,10]
[402135468,1768540260393,-542.08,0.0003589,10]
[402135469,1768540260403,-501.96334426,0.0003589,10]
[402135470,1768540260411,-501.26554391,0.0003589,10]
[402135471,1768540260420,-500.0,0.0003589,10]
[402135472,1768540260429,-433.6209861,0.0003589,10]
[402135473,1768540260439,-500.0,0.0003589,10]
[402135474,1768540260448,-500.0,0.0003589,10]
[402135475,1768540260458,-500.0,0.0003589,10]
[402135476,1768540260467,-500.0,0.0003589,10]
[402135477,1768540260476,-500.0,0.0003589,10]
[402135478,1768540260485,-2258.53,0.0003589,10]
[402135479,1768540260494,-194.66429504,0.0003589,10]
[402135480,1768540260503,-531.64,0.0003589,10]
[402135481,1768540260512,-500.0,0.0003589,10]